[Event "Titled Tuesday Blitz February 14 Early 2023"]
[White "Khamdamova, Afruza"]
[Black "Sharapov, Evgeny"]
[WhiteFideId "14210444"]
[BlackFideId "14103133"]
[WhiteElo "2162"]
[BlackElo "2375"]
[Result "0-1"]
[Round "11"]
[TimeControl "180+2"]
[Date "2023.02.14"]
[WhiteClock "0:00:08"]
[BlackClock "0:00:20"]

1. e4 {[%clk 0:03:00]}  c5 {[%clk 0:02:59]} 2. Nf3 {[%clk 0:03:01]}  d6 {[%clk 0:02:59]} 3. Nc3 {[%clk 0:03:00]}  e5 {[%clk 0:02:59]} 4. Bc4 {[%clk 0:02:59]}  Be7 {[%clk 0:02:58]} 5. O-O {[%clk 0:03:00]}  Nf6 {[%clk 0:02:58]} 6. d3 {[%clk 0:02:59]}  O-O {[%clk 0:02:58]} 7. Bg5 {[%clk 0:02:59]}  Nfd7 {[%clk 0:02:57]} 8. Bxe7 {[%clk 0:02:58]}  Qxe7 {[%clk 0:02:57]} 9. Nd5 {[%clk 0:02:57]}  Qd8 {[%clk 0:02:57]} 10. Nd2 {[%clk 0:02:54]}  Nf6 {[%clk 0:02:54]} 11. f4 {[%clk 0:02:53]}  Nxd5 {[%clk 0:02:48]} 12. Bxd5 {[%clk 0:02:54]}  exf4 {[%clk 0:02:45]} 13. Rxf4 {[%clk 0:02:54]}  Nc6 {[%clk 0:02:45]} 14. Qh5 {[%clk 0:02:45]}  Be6 {[%clk 0:02:34]} 15. Raf1 {[%clk 0:02:37]}  Bxd5 {[%clk 0:02:28]} 16. exd5 {[%clk 0:02:36]}  Ne5 {[%clk 0:02:27]} 17. Ne4 {[%clk 0:02:35]}  h6 {[%clk 0:02:04]} 18. Nf6+ {[%clk 0:01:54]}  Kh8 {[%clk 0:01:41]} 19. Ng4 {[%clk 0:01:36]}  Nxg4 {[%clk 0:01:33]} 20. Rxg4 {[%clk 0:01:36]}  f6 {[%clk 0:01:17]} 21. Rg6 {[%clk 0:01:06]}  Qe7 {[%clk 0:01:12]} 22. Qf5 {[%clk 0:01:02]}  Rae8 {[%clk 0:01:02]} 23. h3 {[%clk 0:00:56]}  Qe5 {[%clk 0:00:59]} 24. Qf3 {[%clk 0:00:54]}  Qe3+ {[%clk 0:00:57]} 25. Rf2 {[%clk 0:00:47]}  Qxf3 {[%clk 0:00:56]} 26. gxf3 {[%clk 0:00:46]}  Re5 {[%clk 0:00:53]} 27. Rfg2 {[%clk 0:00:42]}  Rf7 {[%clk 0:00:52]} 28. R6g4 {[%clk 0:00:35]}  Rxd5 {[%clk 0:00:50]} 29. Re4 {[%clk 0:00:34]}  Re5 {[%clk 0:00:50]} 30. Rge2 {[%clk 0:00:34]}  Rfe7 {[%clk 0:00:50]} 31. Kf2 {[%clk 0:00:27]}  f5 {[%clk 0:00:48]} 32. Rxe5 {[%clk 0:00:27]}  Rxe5 {[%clk 0:00:48]} 33. Rd2 {[%clk 0:00:14]}  f4 {[%clk 0:00:32]} 34. d4 {[%clk 0:00:13]}  Rd5 {[%clk 0:00:32]} 35. c3 {[%clk 0:00:13]}  Kh7 {[%clk 0:00:30]} 36. Ke2 {[%clk 0:00:12]}  Rh5 {[%clk 0:00:30]} 37. dxc5 {[%clk 0:00:11]}  dxc5 {[%clk 0:00:30]} 38. Rd7 {[%clk 0:00:11]}  Rxh3 {[%clk 0:00:30]} 39. Rxb7 {[%clk 0:00:11]}  Rh2+ {[%clk 0:00:29]} 40. Kd3 {[%clk 0:00:12]}  h5 {[%clk 0:00:27]} 41. Ke4 {[%clk 0:00:12]}  h4 {[%clk 0:00:25]} 42. Kxf4 {[%clk 0:00:12]}  Rg2 {[%clk 0:00:25]} 43. Rc7 {[%clk 0:00:09]}  h3 {[%clk 0:00:23]} 44. Rxc5 {[%clk 0:00:10]}  g5+ {[%clk 0:00:22]} 45. Kf5 {[%clk 0:00:09]}  h2 {[%clk 0:00:22]} 46. Rc8 {[%clk 0:00:10]}  h1=Q {[%clk 0:00:20]} 47. Rc7+ {[%clk 0:00:09]}  Kg8 {[%clk 0:00:20]} 48. Rc8+ {[%clk 0:00:08]}  Kf7 {[%clk 0:00:20]} 49. Rc7+ {[%clk 0:00:08]}  Ke8 {[%clk 0:00:20]} 0-1


[Site "https://www.chess.com"]

[Event "Titled Tuesday Blitz February 14 Early 2023"]
[White "Womacka, Mathias"]
[Black "Ambartsumova, Karina"]
[WhiteFideId "4611390"]
[BlackFideId "4166299"]
[WhiteElo "2396"]
[BlackElo "2393"]
[Result "0-1"]
[Round "11"]
[TimeControl "180+2"]
[Date "2023.02.14"]
[WhiteClock "0:00:01"]
[BlackClock "0:00:07"]

1. e4 {[%clk 0:03:00]}  c5 {[%clk 0:02:58]} 2. Nf3 {[%clk 0:03:00]}  Nc6 {[%clk 0:02:58]} 3. d4 {[%clk 0:02:59]}  cxd4 {[%clk 0:02:59]} 4. Nxd4 {[%clk 0:02:56]}  Qb6 {[%clk 0:02:59]} 5. Nb3 {[%clk 0:02:54]}  Nf6 {[%clk 0:03:00]} 6. Nc3 {[%clk 0:02:53]}  e6 {[%clk 0:03:00]} 7. Bd3 {[%clk 0:02:51]}  a6 {[%clk 0:02:57]} 8. O-O {[%clk 0:02:48]}  h5 {[%clk 0:02:50]} 9. Bf4 {[%clk 0:02:22]}  d6 {[%clk 0:02:44]} 10. a4 {[%clk 0:02:10]}  Be7 {[%clk 0:02:39]} 11. a5 {[%clk 0:02:09]}  Qc7 {[%clk 0:02:40]} 12. Qd2 {[%clk 0:02:01]}  Bd7 {[%clk 0:02:36]} 13. Na4 {[%clk 0:01:58]}  Ne5 {[%clk 0:02:26]} 14. Nb6 {[%clk 0:01:55]}  Rd8 {[%clk 0:02:25]} 15. c4 {[%clk 0:01:33]}  Bc6 {[%clk 0:02:23]} 16. Rfe1 {[%clk 0:01:29]}  Ng6 {[%clk 0:01:58]} 17. Bg5 {[%clk 0:01:23]}  Ng4 {[%clk 0:01:53]} 18. h3 {[%clk 0:01:18]}  N4e5 {[%clk 0:01:41]} 19. Bf1 {[%clk 0:01:07]}  f6 {[%clk 0:01:28]} 20. Be3 {[%clk 0:01:05]}  Bxe4 {[%clk 0:01:24]} 21. Bd4 {[%clk 0:00:59]}  Qc6 {[%clk 0:01:16]} 22. Bc3 {[%clk 0:00:46]}  Nh4 {[%clk 0:00:32]} 23. Nd4 {[%clk 0:00:44]}  Bxg2 {[%clk 0:00:32]} 24. Rxe5 {[%clk 0:00:36]}  dxe5 {[%clk 0:00:30]} 25. Nxc6 {[%clk 0:00:35]}  Rxd2 {[%clk 0:00:30]} 26. Bxd2 {[%clk 0:00:31]}  Bxc6 {[%clk 0:00:30]} 27. Be2 {[%clk 0:00:19]}  Kf7 {[%clk 0:00:30]} 28. b4 {[%clk 0:00:18]}  Nf3+ {[%clk 0:00:26]} 29. Bxf3 {[%clk 0:00:18]}  Bxf3 {[%clk 0:00:27]} 30. b5 {[%clk 0:00:17]}  Rd8 {[%clk 0:00:26]} 31. Be3 {[%clk 0:00:17]}  f5 {[%clk 0:00:19]} 32. bxa6 {[%clk 0:00:15]}  bxa6 {[%clk 0:00:20]} 33. Na4 {[%clk 0:00:15]}  f4 {[%clk 0:00:20]} 34. Bb6 {[%clk 0:00:15]}  Rd2 {[%clk 0:00:17]} 35. Nc5 {[%clk 0:00:12]}  Bh4 {[%clk 0:00:15]} 36. Nxa6 {[%clk 0:00:11]}  e4 {[%clk 0:00:11]} 37. Nc7 {[%clk 0:00:10]}  e3 {[%clk 0:00:08]} 38. fxe3 {[%clk 0:00:11]}  Bf2+ {[%clk 0:00:08]} 39. Kf1 {[%clk 0:00:10]}  fxe3 {[%clk 0:00:09]} 40. a6 {[%clk 0:00:08]}  Rd1+ {[%clk 0:00:05]} 41. Rxd1 {[%clk 0:00:07]}  e2+ {[%clk 0:00:06]} 42. Kxf2 {[%clk 0:00:03]}  exd1=Q {[%clk 0:00:06]} 43. a7 {[%clk 0:00:03]}  Qe2+ {[%clk 0:00:07]} 44. Kg3 {[%clk 0:00:03]}  g5 {[%clk 0:00:07]} 45. Bf2 {[%clk 0:00:01]}  h4+ {[%clk 0:00:07]} 0-1


[Site "https://www.chess.com"]

[Event "Titled Tuesday Blitz February 14 Early 2023"]
[White "Bodnaruk, Anastasia"]
[Black "Alahakoon, Isuru"]
[WhiteFideId "4181751"]
[BlackFideId "9900993"]
[WhiteElo "2350"]
[BlackElo "1819"]
[Result "0-1"]
[Round "11"]
[TimeControl "180+2"]
[Date "2023.02.14"]
[WhiteClock "0:00:01"]
[BlackClock "0:00:12"]

1. e4 {[%clk 0:03:00]}  d5 {[%clk 0:02:59]} 2. exd5 {[%clk 0:03:00]}  Qxd5 {[%clk 0:02:59]} 3. Nc3 {[%clk 0:03:00]}  Qa5 {[%clk 0:02:59]} 4. d4 {[%clk 0:03:00]}  Nf6 {[%clk 0:02:59]} 5. Nf3 {[%clk 0:02:59]}  Bg4 {[%clk 0:02:59]} 6. h3 {[%clk 0:02:58]}  Bh5 {[%clk 0:02:59]} 7. Bc4 {[%clk 0:02:40]}  Nc6 {[%clk 0:02:57]} 8. g4 {[%clk 0:02:36]}  Bg6 {[%clk 0:02:57]} 9. Bd2 {[%clk 0:02:36]}  O-O-O {[%clk 0:02:56]} 10. Qe2 {[%clk 0:02:07]}  Nb4 {[%clk 0:02:26]} 11. O-O {[%clk 0:02:01]}  e6 {[%clk 0:02:17]} 12. Ne5 {[%clk 0:01:38]}  Nxc2 {[%clk 0:02:11]} 13. Nb5 {[%clk 0:01:27]}  Qb6 {[%clk 0:02:02]} 14. Rac1 {[%clk 0:01:20]}  Nxd4 {[%clk 0:01:59]} 15. Nxd4 {[%clk 0:01:20]}  Qxd4 {[%clk 0:01:57]} 16. Bc3 {[%clk 0:01:06]}  Qe4 {[%clk 0:01:55]} 17. Ba5 {[%clk 0:00:50]}  Qxe2 {[%clk 0:01:52]} 18. Bxe2 {[%clk 0:00:50]}  Bd6 {[%clk 0:01:43]} 19. f4 {[%clk 0:00:43]}  Bxe5 {[%clk 0:01:22]} 20. fxe5 {[%clk 0:00:43]}  Nd5 {[%clk 0:01:22]} 21. Bc4 {[%clk 0:00:35]}  b6 {[%clk 0:01:17]} 22. Bd2 {[%clk 0:00:31]}  Kb7 {[%clk 0:01:07]} 23. Rf2 {[%clk 0:00:29]}  h5 {[%clk 0:01:04]} 24. Bg5 {[%clk 0:00:20]}  Rd7 {[%clk 0:01:00]} 25. Bb5 {[%clk 0:00:19]}  Rhd8 {[%clk 0:00:42]} 26. Bc6+ {[%clk 0:00:18]}  Kc8 {[%clk 0:00:38]} 27. Kh2 {[%clk 0:00:15]}  hxg4 {[%clk 0:00:36]} 28. hxg4 {[%clk 0:00:14]}  Nb4 {[%clk 0:00:33]} 29. Bxd7+ {[%clk 0:00:13]}  Rxd7 {[%clk 0:00:32]} 30. Rd2 {[%clk 0:00:10]}  Nd3 {[%clk 0:00:27]} 31. Rc3 {[%clk 0:00:09]}  Nxe5 {[%clk 0:00:24]} 32. Rxd7 {[%clk 0:00:09]}  Kxd7 {[%clk 0:00:25]} 33. Bf4 {[%clk 0:00:09]}  Nxg4+ {[%clk 0:00:21]} 34. Kg3 {[%clk 0:00:09]}  e5 {[%clk 0:00:21]} 35. Kxg4 {[%clk 0:00:10]}  exf4 {[%clk 0:00:21]} 36. Kxf4 {[%clk 0:00:10]}  c5 {[%clk 0:00:21]} 37. b3 {[%clk 0:00:09]}  Kd6 {[%clk 0:00:20]} 38. Rg3 {[%clk 0:00:09]}  b5 {[%clk 0:00:19]} 39. Rg5 {[%clk 0:00:09]}  a6 {[%clk 0:00:18]} 40. Ke3 {[%clk 0:00:09]}  Kc6 {[%clk 0:00:18]} 41. Kd2 {[%clk 0:00:09]}  c4 {[%clk 0:00:18]} 42. bxc4 {[%clk 0:00:08]}  bxc4 {[%clk 0:00:19]} 43. Kc3 {[%clk 0:00:09]}  Bd3 {[%clk 0:00:16]} 44. Rxg7 {[%clk 0:00:09]}  f5 {[%clk 0:00:17]} 45. Rf7 {[%clk 0:00:08]}  Kd5 {[%clk 0:00:16]} 46. Kb4 {[%clk 0:00:05]}  Ke4 {[%clk 0:00:15]} 47. Rf6 {[%clk 0:00:05]}  f4 {[%clk 0:00:15]} 48. Rxa6 {[%clk 0:00:04]}  f3 {[%clk 0:00:15]} 49. Rf6 {[%clk 0:00:04]}  Ke3 {[%clk 0:00:15]} 50. a4 {[%clk 0:00:04]}  f2 {[%clk 0:00:15]} 51. Re6+ {[%clk 0:00:02]}  Kd2 {[%clk 0:00:13]} 52. Rf6 {[%clk 0:00:02]}  f1=Q {[%clk 0:00:12]} 53. Rxf1 {[%clk 0:00:02]}  Bxf1 {[%clk 0:00:13]} 54. a5 {[%clk 0:00:02]}  c3 {[%clk 0:00:13]} 55. a6 {[%clk 0:00:01]}  Bxa6 {[%clk 0:00:12]} 0-1


[Site "https://www.chess.com"]

[Event "Titled Tuesday Blitz February 14 Early 2023"]
[White "Shimelkov, Vasiliy"]
[Black "Gonzalez, Francisco Silva"]
[WhiteFideId "13701630"]
[BlackFideId "1512285"]
[WhiteElo "2159"]
[BlackElo "2021"]
[Result "1-0"]
[Round "11"]
[TimeControl "180+2"]
[Date "2023.02.14"]
[WhiteClock "0:01:13"]
[BlackClock "0:01:16"]

1. d4 {[%clk 0:02:57]}  Nf6 {[%clk 0:02:59]} 2. c4 {[%clk 0:02:54]}  e6 {[%clk 0:02:59]} 3. g3 {[%clk 0:02:52]}  d5 {[%clk 0:02:59]} 4. Nf3 {[%clk 0:02:51]}  dxc4 {[%clk 0:02:59]} 5. Bg2 {[%clk 0:02:49]}  Nc6 {[%clk 0:02:59]} 6. Qa4 {[%clk 0:02:48]}  Bb4+ {[%clk 0:02:58]} 7. Bd2 {[%clk 0:02:47]}  Nd5 {[%clk 0:02:58]} 8. Bxb4 {[%clk 0:02:45]}  Nxb4 {[%clk 0:02:58]} 9. O-O {[%clk 0:02:45]}  O-O {[%clk 0:02:51]} 10. a3 {[%clk 0:02:42]}  b5 {[%clk 0:02:38]} 11. Qxb5 {[%clk 0:02:38]}  Nc2 {[%clk 0:02:32]} 12. Qxc6 {[%clk 0:02:36]}  Bd7 {[%clk 0:02:30]} 13. Qxc4 {[%clk 0:02:34]}  Nxa1 {[%clk 0:02:30]} 14. Nbd2 {[%clk 0:02:33]}  Rb8 {[%clk 0:02:24]} 15. Rxa1 {[%clk 0:02:32]}  Bb5 {[%clk 0:02:24]} 16. Qc3 {[%clk 0:02:29]}  Bxe2 {[%clk 0:02:23]} 17. b4 {[%clk 0:02:27]}  a5 {[%clk 0:02:21]} 18. Ne5 {[%clk 0:02:23]}  Qd6 {[%clk 0:02:21]} 19. Ne4 {[%clk 0:02:18]}  Qa6 {[%clk 0:02:18]} 20. bxa5 {[%clk 0:02:16]}  Qb5 {[%clk 0:02:03]} 21. Nc5 {[%clk 0:02:11]}  Qb1+ {[%clk 0:02:01]} 22. Qe1 {[%clk 0:02:03]}  Qb2 {[%clk 0:01:54]} 23. Ncd7 {[%clk 0:01:57]}  Qxd4 {[%clk 0:01:52]} 24. Nxb8 {[%clk 0:01:54]}  Qxe5 {[%clk 0:01:48]} 25. Nd7 {[%clk 0:01:51]}  Qd4 {[%clk 0:01:46]} 26. Nxf8 {[%clk 0:01:48]}  g5 {[%clk 0:01:35]} 27. Rc1 {[%clk 0:01:43]}  Bb5 {[%clk 0:01:28]} 28. Nxe6 {[%clk 0:01:32]}  fxe6 {[%clk 0:01:27]} 29. Qxe6+ {[%clk 0:01:32]}  Kf8 {[%clk 0:01:26]} 30. Qc8+ {[%clk 0:01:27]}  Be8 {[%clk 0:01:24]} 31. Qxc7 {[%clk 0:01:26]}  Qd3 {[%clk 0:01:22]} 32. Qc5+ {[%clk 0:01:16]}  Qd6 {[%clk 0:01:20]} 33. Qxd6+ {[%clk 0:01:15]}  Kg7 {[%clk 0:01:21]} 34. Rc7+ {[%clk 0:01:15]}  Kg8 {[%clk 0:01:19]} 35. Qe7 {[%clk 0:01:14]}  Bf7 {[%clk 0:01:16]} 36. Qxf7+ {[%clk 0:01:13]} 1-0


[Site "https://www.chess.com"]

[Event "Titled Tuesday Blitz February 14 Early 2023"]
[White "Jovic, Stanoje"]
[Black "Escalona Landi, Samid Eduardo"]
[WhiteFideId "905020"]
[BlackFideId "3937437"]
[WhiteElo "2075"]
[BlackElo "2218"]
[Result "1-0"]
[Round "11"]
[TimeControl "180+2"]
[Date "2023.02.14"]
[WhiteClock "0:00:14"]
[BlackClock "0:00:02"]

1. c4 {[%clk 0:03:00]}  g6 {[%clk 0:02:59]} 2. g3 {[%clk 0:03:01]}  Bg7 {[%clk 0:03:00]} 3. Bg2 {[%clk 0:03:01]}  d6 {[%clk 0:03:01]} 4. Nc3 {[%clk 0:03:01]}  Nc6 {[%clk 0:03:00]} 5. Nf3 {[%clk 0:03:01]}  Bd7 {[%clk 0:03:00]} 6. O-O {[%clk 0:03:00]}  Qc8 {[%clk 0:03:00]} 7. d4 {[%clk 0:02:58]}  Bh3 {[%clk 0:03:00]} 8. e4 {[%clk 0:02:58]}  h5 {[%clk 0:02:55]} 9. d5 {[%clk 0:02:56]}  Ne5 {[%clk 0:02:55]} 10. Nxe5 {[%clk 0:02:56]}  Bxe5 {[%clk 0:02:56]} 11. f4 {[%clk 0:02:55]}  Bg7 {[%clk 0:02:40]} 12. e5 {[%clk 0:02:42]}  dxe5 {[%clk 0:02:34]} 13. fxe5 {[%clk 0:02:42]}  Bxe5 {[%clk 0:02:32]} 14. Qf3 {[%clk 0:02:40]}  Nf6 {[%clk 0:02:30]} 15. Bg5 {[%clk 0:02:29]}  h4 {[%clk 0:02:28]} 16. Rae1 {[%clk 0:02:24]}  Bd4+ {[%clk 0:02:27]} 17. Be3 {[%clk 0:02:24]}  Bxg2 {[%clk 0:02:00]} 18. Qxg2 {[%clk 0:02:14]}  Bxc3 {[%clk 0:01:31]} 19. bxc3 {[%clk 0:02:14]}  hxg3 {[%clk 0:01:32]} 20. hxg3 {[%clk 0:02:12]}  O-O {[%clk 0:01:26]} 21. Bd4 {[%clk 0:02:09]}  Qd7 {[%clk 0:01:25]} 22. Qh2 {[%clk 0:01:54]}  Qd6 {[%clk 0:01:04]} 23. c5 {[%clk 0:01:47]}  Qxd5 {[%clk 0:01:03]} 24. Rxf6 {[%clk 0:01:42]}  exf6 {[%clk 0:01:03]} 25. Bxf6 {[%clk 0:01:38]}  Qxc5+ {[%clk 0:00:55]} 26. Bd4 {[%clk 0:01:28]}  Qh5 {[%clk 0:00:54]} 27. Qf2 {[%clk 0:01:24]}  Rfe8 {[%clk 0:00:48]} 28. Rf1 {[%clk 0:01:19]}  f5 {[%clk 0:00:48]} 29. Qb2 {[%clk 0:01:12]}  Re2 {[%clk 0:00:28]} 30. Qb3+ {[%clk 0:01:04]}  Kf8 {[%clk 0:00:28]} 31. Qb4+ {[%clk 0:01:01]}  Ke8 {[%clk 0:00:26]} 32. Bf2 {[%clk 0:00:49]}  Qf3 {[%clk 0:00:25]} 33. Qb5+ {[%clk 0:00:43]}  Kf7 {[%clk 0:00:25]} 34. Qc4+ {[%clk 0:00:40]}  Re6 {[%clk 0:00:13]} 35. Qxc7+ {[%clk 0:00:37]}  Re7 {[%clk 0:00:06]} 36. Qxe7+ {[%clk 0:00:35]}  Kxe7 {[%clk 0:00:07]} 37. Bc5+ {[%clk 0:00:35]}  Ke6 {[%clk 0:00:08]} 38. Rxf3 {[%clk 0:00:35]}  Kd5 {[%clk 0:00:09]} 39. Bd4 {[%clk 0:00:33]}  b5 {[%clk 0:00:09]} 40. a3 {[%clk 0:00:31]}  a5 {[%clk 0:00:09]} 41. Rf4 {[%clk 0:00:25]}  Ra6 {[%clk 0:00:06]} 42. g4 {[%clk 0:00:24]}  fxg4 {[%clk 0:00:07]} 43. Rxg4 {[%clk 0:00:24]}  Kc4 {[%clk 0:00:08]} 44. Be5+ {[%clk 0:00:18]}  Kb3 {[%clk 0:00:08]} 45. Rg3 {[%clk 0:00:18]}  Rc6 {[%clk 0:00:05]} 46. Bd4 {[%clk 0:00:16]}  Ka4 {[%clk 0:00:02]} 47. Rg5 {[%clk 0:00:14]} 1-0


[Site "https://www.chess.com"]

[Event "Titled Tuesday Blitz February 14 Early 2023"]
[White "Fiorito, Joaquin"]
[Black "Tymrakiewicz, Rafal"]
[WhiteFideId "180173"]
[BlackFideId "1108832"]
[WhiteElo "2405"]
[BlackElo "2144"]
[Result "0-1"]
[Round "11"]
[TimeControl "180+2"]
[Date "2023.02.14"]
[WhiteClock "0:00:03"]
[BlackClock "0:00:05"]

1. d4 {[%clk 0:03:00]}  d5 {[%clk 0:02:59]} 2. Nc3 {[%clk 0:03:01]}  c6 {[%clk 0:02:55]} 3. Bf4 {[%clk 0:03:01]}  Qb6 {[%clk 0:02:54]} 4. Rb1 {[%clk 0:02:59]}  Bf5 {[%clk 0:02:53]} 5. e3 {[%clk 0:03:00]}  Nf6 {[%clk 0:02:52]} 6. Bd3 {[%clk 0:03:00]}  e6 {[%clk 0:02:50]} 7. Nf3 {[%clk 0:02:57]}  Nbd7 {[%clk 0:02:50]} 8. h3 {[%clk 0:02:55]}  Bb4 {[%clk 0:02:49]} 9. O-O {[%clk 0:02:55]}  O-O {[%clk 0:02:48]} 10. Ne2 {[%clk 0:02:55]}  Rfe8 {[%clk 0:02:39]} 11. a3 {[%clk 0:02:52]}  Bf8 {[%clk 0:02:38]} 12. Ng3 {[%clk 0:02:47]}  Bxd3 {[%clk 0:02:38]} 13. Qxd3 {[%clk 0:02:45]}  c5 {[%clk 0:02:33]} 14. c3 {[%clk 0:02:45]}  Bd6 {[%clk 0:02:21]} 15. Ne5 {[%clk 0:02:39]}  Bxe5 {[%clk 0:02:21]} 16. dxe5 {[%clk 0:02:40]}  c4 {[%clk 0:02:09]} 17. Qd2 {[%clk 0:02:24]}  g5 {[%clk 0:01:51]} 18. Bxg5 {[%clk 0:02:21]}  Nxe5 {[%clk 0:01:32]} 19. Bxf6 {[%clk 0:02:20]}  Nd3 {[%clk 0:01:32]} 20. Ne2 {[%clk 0:02:16]}  e5 {[%clk 0:01:32]} 21. Bh4 {[%clk 0:02:15]}  Re6 {[%clk 0:01:30]} 22. Nc1 {[%clk 0:02:08]}  e4 {[%clk 0:01:29]} 23. Nxd3 {[%clk 0:02:07]}  exd3 {[%clk 0:01:15]} 24. b3 {[%clk 0:02:07]}  Qc6 {[%clk 0:01:11]} 25. bxc4 {[%clk 0:02:05]}  dxc4 {[%clk 0:01:12]} 26. Bg3 {[%clk 0:02:00]}  Rd8 {[%clk 0:01:08]} 27. Rb2 {[%clk 0:01:58]}  b5 {[%clk 0:01:06]} 28. Rfb1 {[%clk 0:01:58]}  Rd5 {[%clk 0:01:06]} 29. a4 {[%clk 0:01:58]}  a6 {[%clk 0:01:05]} 30. axb5 {[%clk 0:01:58]}  axb5 {[%clk 0:01:04]} 31. Ra1 {[%clk 0:01:57]}  Rg6 {[%clk 0:01:01]} 32. e4 {[%clk 0:01:44]}  Rdg5 {[%clk 0:00:55]} 33. Qe3 {[%clk 0:01:44]}  h5 {[%clk 0:00:48]} 34. h4 {[%clk 0:01:44]}  Rg4 {[%clk 0:00:45]} 35. Re1 {[%clk 0:01:22]}  Kh7 {[%clk 0:00:35]} 36. Qd4 {[%clk 0:01:14]}  f5 {[%clk 0:00:30]} 37. Qe5 {[%clk 0:00:22]}  f4 {[%clk 0:00:28]} 38. Rxb5 {[%clk 0:00:20]}  fxg3 {[%clk 0:00:20]} 39. f3 {[%clk 0:00:20]}  Rxh4 {[%clk 0:00:18]} 40. Rc5 {[%clk 0:00:18]}  Qb6 {[%clk 0:00:18]} 41. Qe7+ {[%clk 0:00:15]}  Kh6 {[%clk 0:00:16]} 42. Qxh4 {[%clk 0:00:11]}  Qxc5+ {[%clk 0:00:15]} 43. Kh1 {[%clk 0:00:11]}  Qf2 {[%clk 0:00:15]} 44. Qf4+ {[%clk 0:00:11]}  Kh7 {[%clk 0:00:14]} 45. Ra1 {[%clk 0:00:10]}  Rg7 {[%clk 0:00:10]} 46. Qf5+ {[%clk 0:00:10]}  Rg6 {[%clk 0:00:06]} 47. Qd7+ {[%clk 0:00:08]}  Kh6 {[%clk 0:00:05]} 48. Rb1 {[%clk 0:00:07]}  d2 {[%clk 0:00:05]} 49. Rg1 {[%clk 0:00:03]}  Qe1 {[%clk 0:00:05]} 50. Qd6 {[%clk 0:00:03]}  Rxd6 {[%clk 0:00:05]} 0-1


[Site "https://www.chess.com"]

[Event "Titled Tuesday Blitz February 14 Early 2023"]
[White "Jakubowski, Krzysztof"]
[Black "Buchenau, Frank"]
[WhiteFideId "1112848"]
[BlackFideId "4604350"]
[WhiteElo "2486"]
[BlackElo "2222"]
[Result "0-1"]
[Round "11"]
[TimeControl "180+2"]
[Date "2023.02.14"]
[WhiteClock "0:01:10"]
[BlackClock "0:01:00"]

1. e4 {[%clk 0:03:00]}  e6 {[%clk 0:03:00]} 2. d4 {[%clk 0:02:58]}  d5 {[%clk 0:03:00]} 3. Nc3 {[%clk 0:02:57]}  Nf6 {[%clk 0:03:00]} 4. e5 {[%clk 0:02:57]}  Nfd7 {[%clk 0:03:00]} 5. Nce2 {[%clk 0:02:57]}  c5 {[%clk 0:03:01]} 6. c3 {[%clk 0:02:57]}  Nc6 {[%clk 0:03:01]} 7. f4 {[%clk 0:02:55]}  Be7 {[%clk 0:03:01]} 8. Nf3 {[%clk 0:02:54]}  O-O {[%clk 0:02:56]} 9. a3 {[%clk 0:02:46]}  b5 {[%clk 0:02:51]} 10. Ng3 {[%clk 0:02:40]}  Qb6 {[%clk 0:02:47]} 11. Be3 {[%clk 0:02:37]}  cxd4 {[%clk 0:02:45]} 12. cxd4 {[%clk 0:02:36]}  b4 {[%clk 0:02:36]} 13. h4 {[%clk 0:02:27]}  f6 {[%clk 0:02:23]} 14. Bd3 {[%clk 0:02:12]}  fxe5 {[%clk 0:02:15]} 15. fxe5 {[%clk 0:01:57]}  Ndxe5 {[%clk 0:02:09]} 16. Nxe5 {[%clk 0:01:56]}  Nxe5 {[%clk 0:02:07]} 17. Bxh7+ {[%clk 0:01:55]}  Kxh7 {[%clk 0:02:03]} 18. Qh5+ {[%clk 0:01:54]}  Kg8 {[%clk 0:02:02]} 19. Qxe5 {[%clk 0:01:53]}  bxa3 {[%clk 0:01:44]} 20. Nh5 {[%clk 0:01:44]}  Bb4+ {[%clk 0:01:30]} 21. Kd1 {[%clk 0:01:39]}  Rf7 {[%clk 0:01:19]} 22. bxa3 {[%clk 0:01:27]}  Bd6 {[%clk 0:01:14]} 23. Qg5 {[%clk 0:01:26]}  Qb3+ {[%clk 0:01:08]} 24. Ke1 {[%clk 0:01:12]}  Qc3+ {[%clk 0:01:05]} 25. Bd2 {[%clk 0:01:10]}  Qxa1+ {[%clk 0:01:01]} 26. Ke2 {[%clk 0:01:10]}  Ba6+ {[%clk 0:01:00]} 0-1


[Site "https://www.chess.com"]